bitfinex-derivatives/quotes_SOLF0:USTF0_20241127
["timestamp","ask_amount","ask_price","bid_price","bid_amount"]
[1732716305449,17.03335617,237.94,237.79,12.74358923]
[1732716305650,9.21687355,237.93,237.8,3.8274]
[1732716305850,4.5415,237.95,237.82,10.18358923]
[1732716305851,2.4404,237.95,237.82,10.18358923]
[1732716306152,9.21647543,237.94,237.82,10.18358923]
[1732716306453,9.21647543,237.94,237.85,2.102]
[1732716306655,9.21647543,237.94,237.86,2.56]
[1732716307048,9.21647543,237.94,237.88,2.1017]
[1732716307553,9.21647543,237.94,237.87,2.1018]
[1732716307749,9.21647543,237.94,237.86,2.56]
[1732716307955,2.4404,237.95,237.86,2.56]
[1732716308156,2.4404,237.95,237.89,2.1016]
[1732716308352,2.4404,237.95,237.86,2.56]
[1732716309152,10.18358923,237.99,237.86,2.56]
[1732716309353,17.01650744,237.98,237.86,2.56]
[1732716309648,9.19982193,237.97,237.86,2.56]
[1732716309855,10.18358923,237.99,237.86,2.56]
[1732716310057,17.01599488,237.98,237.86,2.56]
[1732716310251,9.19948089,237.97,237.86,2.56]
[1732716310454,9.19948089,237.96,237.86,2.56]
[1732716310655,10.18358923,237.99,237.86,2.56]
[1732716310947,17.01650927,237.98,237.92,2.1013]
[1732716311152,10.18358923,237.99,237.92,2.1013]
[1732716311153,9.19975211,237.97,237.92,2.1013]
[1732716311457,10.18358923,237.99,237.92,2.1013]
[1732716311657,17.01634962,237.98,237.86,2.56]
[1732716311854,10.18358923,237.96,237.86,2.56]
[1732716312751,2.1011,237.95,237.88,2.1017]
[1732716313053,10.18358923,237.96,237.86,2.56]
[1732716313651,2.1012,237.95,237.87,2.1017]
[1732716313850,10.18358923,237.96,237.86,2.56]
[1732716314254,9.20301254,237.95,237.89,2.1016]
[1732716314854,11.30411254,237.95,237.89,2.1016]
[1732716315054,2.1011,237.95,237.89,2.1016]
[1732716315259,10.18358923,237.96,237.86,2.1019]
[1732716315559,2.1013,237.94,237.86,2.56]
[1732716315754,10.18358923,237.96,237.8,3.8274]
[1732716316059,10.18358923,237.93,237.81,2.56]
[1732716316259,9.20506753,237.92,237.82,4.6623]
[1732716316560,2.1017,237.89,237.82,4.6623]
[1732716317656,2.1019,237.87,237.79,2.1025]
[1732716317951,10.18358923,237.87,237.78,2.56]
[1732716318662,10.18358923,237.87,237.73,2.5459]
[1732716318853,1.3114,237.92,237.78,10.18358923]
[1732716319057,9.21014983,237.91,237.78,10.18358923]
[1732716319559,9.21014983,237.91,237.85,2.102]
[1732716319765,9.21014983,237.91,237.83,2.56]
[1732716319963,9.21014983,237.91,237.79,2.56]
[1732716320161,11.31164983,237.91,237.83,2.1021]
[1732716320363,9.21014983,237.9,237.79,2.56]
[1732716320758,2.1015,237.91,237.79,2.56]
[1732716321066,9.21270254,237.9,237.79,2.56]
[1732716321365,11.49498923,237.92,237.79,2.56]
[1732716321366,1.3114,237.92,237.79,2.56]
[1732716321761,1.3114,237.92,237.87,2.1018]
[1732716322471,2.10332638,237.97,237.86,6.51797482]
[1732716322666,9.21180906,237.96,237.9,6.51797482]
[1732716322969,9.21180906,237.95,237.92,2.1013]
[1732716323170,6.51797482,237.96,237.92,4.6613]
[1732716323574,6.51797482,237.96,237.92,2.56]
[1732716324368,13.51585069,237.98,237.92,2.56]
[1732716324569,9.20994589,237.97,237.92,2.56]
[1732716324770,9.20994589,237.97,237.92,4.6614]
[1732716324966,9.20994589,237.97,237.92,2.56]
[1732716325171,1.2343,237.98,237.92,2.56]
[1732716325972,3.3352,237.98,237.92,2.56]
[1732716326171,1.2343,237.98,237.92,2.56]
[1732716326572,1.2123,238.02,237.92,2.56]
[1732716326573,11.39295069,238.02,237.92,2.56]
[1732716326870,19.12995379,238.01,237.94,2.1012]
[1732716327172,17.02935379,238.0,237.92,2.56]
[1732716327374,9.20667801,237.99,237.92,2.56]
[1732716327674,11.39295069,238.02,237.92,2.56]
[1732716327975,17.02571301,238.01,237.92,2.56]
[1732716328173,9.20467486,238.0,237.92,2.56]
[1732716328472,2.1004,238.03,237.92,2.56]
[1732716328779,9.20173407,238.02,237.95,2.1011]
[1732716329872,2.1007,238.0,237.94,2.52]
[1732716330069,10.18065069,238.01,237.84,3.7714]
[1732716330070,10.18065069,237.99,237.84,3.7714]
[1732716330274,10.18065069,237.99,237.85,12.70065069]
[1732716330275,9.20020684,237.98,237.85,12.70065069]
[1732716330477,9.20020684,237.98,237.88,10.18065069]
[1732716330674,10.18065069,238.03,237.88,10.18065069]
[1732716330977,17.01505727,238.02,237.97,2.1009]
[1732716331177,9.19890778,238.01,237.96,2.52]
[1732716331380,10.18065069,238.03,237.96,2.52]
[1732716331573,9.19705807,238.02,237.96,2.52]
[1732716332373,10.18065069,238.0,237.96,2.52]
[1732716332976,2.1008,237.99,237.96,2.52]
[1732716333169,10.18065069,238.0,237.96,2.52]
[1732716333377,9.19528478,237.99,237.96,2.52]
[1732716333677,10.18065069,238.0,237.96,2.52]
[1732716333872,10.18065069,238.0,237.93,2.1013]
[1732716333873,9.1954884,237.99,237.85,10.18065069]
[1732716334076,11.2962884,237.99,237.86,2.52]
[1732716334274,10.18065069,238.0,237.86,2.52]
[1732716334474,9.19496455,237.99,237.86,2.52]
[1732716334674,2.1008,237.99,237.86,2.52]
[1732716335179,2.1007,238.01,237.94,2.1012]
[1732716335481,10.18065069,238.02,237.94,2.1012]
[1732716335680,9.19251183,238.01,237.94,2.1012]
[1732716335876,2.07430014,238.09,237.94,2.1012]
[1732716336176,2.1008,237.99,237.94,2.1012]
[1732716336684,2.101,237.97,237.93,2.52]
[1732716336980,10.18065069,237.95,237.84,3.7714]
[1732716337182,10.18065069,237.95,237.85,2.52]
[1732716337481,12.29935726,237.95,237.85,2.52]
[1732716337676,1.3072,238.03,237.89,10.18065069]
[1732716337877,17.00294604,238.02,237.89,10.18065069]
[1732716338077,3.4077,238.03,237.89,10.18065069]
[1732716338277,3.4077,238.03,237.86,18.01323]
[1732716338278,13.58835069,238.03,237.88,10.18065069]
[1732716338475,2.1006,238.01,237.9,2.52]
[1732716338678,11.48785069,238.03,237.9,2.52]
[1732716338887,1.3072,238.03,237.93,2.1012]
[1732716339182,1.3072,238.03,237.91,10.18065069]
[1732716339384,10.18065069,238.06,237.95,2.1011]
[1732716339582,10.18065069,238.06,237.96,2.52]
[1732716339982,10.18065069,238.06,237.99,2.1008]
[1732716340189,10.18065069,238.06,237.96,2.52]
[1732716341587,10.18065069,238.06,237.97,2.1009]
[1732716341990,12.28085069,238.06,237.98,2.1008]
[1732716343389,10.18065069,238.06,237.99,2.1008]
[1732716344290,12.28085069,238.06,237.99,2.1008]
[1732716344587,12.28085069,238.06,237.96,2.52]
[1732716344588,10.18065069,238.06,237.96,2.52]
[1732716344993,2.1004,238.04,237.96,4.621]
[1732716345287,10.18065069,238.06,237.91,10.18065069]
[1732716345487,10.18065069,238.03,237.95,2.52]
[1732716345691,10.18065069,238.03,237.94,2.52]
[1732716346484,10.18065069,238.03,237.94,4.6212]
[1732716346485,2.1005,238.02,237.94,4.6212]
[1732716347392,2.1006,238.01,237.94,4.6212]
[1732716347592,10.18065069,238.03,237.94,2.52]
[1732716347787,2.1005,238.02,237.95,2.1011]
[1732716347983,2.1005,238.02,237.94,2.52]
[1732716348186,10.18065069,238.03,237.94,2.52]
[1732716348493,2.1005,238.02,237.95,2.1011]
[1732716349582,10.18065069,238.03,237.95,2.1011]
[1732716350501,12.28115069,238.03,237.95,2.1011]
[1732716350787,10.18065069,238.03,237.96,2.101]
[1732716352295,6.51325858,237.99,237.96,2.101]
[1732716354093,2.06714947,238.04,237.97,2.1009]
[1732716354299,2.52,238.09,237.93,2.52]
[1732716354500,6.51325858,237.99,237.93,2.52]
[1732716354700,6.51325858,237.99,237.95,2.1011]
[1732716355003,6.51325858,237.99,237.93,2.52]
[1732716355501,6.51325858,237.99,237.94,2.1011]
[1732716356298,6.51325858,237.99,237.95,2.1011]
[1732716356600,6.51325858,237.99,237.93,2.52]
[1732716357300,6.51325858,237.99,237.95,2.1011]
[1732716357502,6.51325858,237.99,237.93,2.52]
[1732716357999,1.2436,238.03,237.93,2.52]
[1732716358201,6.51325858,237.99,237.93,2.52]
[1732716358600,6.51325858,237.99,237.95,2.1011]
[1732716360303,6.51325858,237.99,237.93,2.52]
[1732716360504,2.4471,238.02,237.93,2.52]
[1732716360708,6.51325858,237.98,237.93,2.52]
[1732716361009,6.51325858,237.98,237.93,4.6213]
[1732716361212,6.51325858,237.99,237.93,4.6213]
[1732716361509,2.4471,238.02,237.93,2.52]
[1732716361807,1.2058,238.02,237.94,6.51325858]
[1732716362106,6.51325858,238.01,237.94,6.51325858]
[1732716362307,6.51325858,238.03,237.93,2.52]
[1732716362507,6.51325858,238.03,237.94,6.51325858]
[1732716362703,6.51325858,238.03,237.98,2.1009]
[1732716362910,2.46,238.11,237.99,2.46]
[1732716363112,6.51325858,238.0,237.89,2.1016]
[1732716363305,6.51325858,237.98,237.9,8.97325858]
[1732716363509,6.51325858,237.98,237.88,6.51325858]
[1732716363707,3.7676,238.03,237.87,2.46]
[1732716363912,6.51325858,237.92,237.72,4.2062]
[1732716364116,6.51325858,237.88,237.8,6.51325858]
[1732716364416,6.51325858,237.84,237.77,39.29325858]
[1732716364713,6.51325858,237.84,237.78,2.46]
[1732716364905,6.51325858,237.84,237.75,6.51325858]
[1732716365112,6.51325858,237.8,237.65,1.193]
[1732716365407,6.51325858,237.76,237.66,2.46]
[1732716365614,6.51325858,237.76,237.68,6.51325858]
[1732716366214,2.46,237.86,237.68,6.51325858]
[1732716366409,10.19585214,237.84,237.68,10.19585214]
[1732716366608,16.9948212,237.83,237.68,10.19585214]
[1732716366811,9.18831789,237.82,237.74,2.1029]
[1732716367011,10.19585214,237.84,237.72,2.46]
[1732716367212,10.19585214,237.87,237.73,2.46]
[1732716367517,9.70277536,237.86,237.73,2.46]
[1732716367713,9.70277536,237.85,237.77,10.19585214]
[1732716367910,10.19585214,237.93,237.8,10.19585214]
[1732716368113,10.19585214,237.9,237.74,12.60045214]
[1732716368315,9.70110704,237.89,237.75,2.46]
[1732716368518,9.70110704,237.88,237.75,2.46]
[1732716368817,10.19585214,237.9,237.77,10.19585214]
[1732716369116,2.1018,237.88,237.77,2.1027]
[1732716369308,2.1018,237.88,237.75,2.46]
[1732716369616,10.19585214,237.9,237.8,2.1024]
[1732716369814,9.69555987,237.89,237.77,10.19585214]
[1732716370116,3.8015,237.92,237.77,10.19585214]
[1732716370317,10.19585214,237.9,237.75,3.7238]
[1732716370507,9.69248236,237.89,237.75,3.7238]
[1732716370716,2.1018,237.87,237.78,2.1026]
[1732716370910,9.69374325,237.86,237.75,2.46]
[1732716371212,10.19585214,237.87,237.75,2.46]
[1732716371213,11.79614906,237.85,237.75,2.46]
[1732716371512,19.88511609,237.84,237.68,10.19585214]
[1732716371716,19.88511609,237.84,237.69,2.46]
[1732716371717,9.68926395,237.83,237.69,2.46]
[1732716371906,10.19585214,237.84,237.69,2.46]
[1732716372412,2.1022,237.83,237.74,2.103]
[1732716373313,2.1023,237.82,237.73,2.103]
[1732716373915,2.1023,237.82,237.74,2.103]
[1732716374121,10.19585214,237.84,237.69,12.65585214]
[1732716374713,2.1022,237.83,237.69,12.65585214]
[1732716375015,10.19585214,237.84,237.69,12.65585214]
[1732716375717,10.19585214,237.84,237.75,2.1028]
[1732716376220,10.19585214,237.84,237.69,12.65585214]
[1732716376921,10.19585214,237.81,237.69,2.46]
[1732716377920,10.19585214,237.81,237.7,2.1033]
[1732716378225,10.19585214,237.78,237.68,2.46]
[1732716378424,12.3496821,237.78,237.68,2.46]
[1732716378824,12.3496821,237.78,237.65,2.4863]
[1732716379133,3.6661,237.8,237.66,12.65585214]
[1732716379326,5.79404612,237.8,237.67,2.46]
[1732716379527,10.19585214,237.78,237.63,0.28426]
[1732716379728,10.19585214,237.73,237.63,0.28426]
[1732716380028,2.1032,237.72,237.63,2.38826]
[1732716380620,2.1033,237.71,237.63,2.38826]
[1732716380827,12.65585214,237.7,237.63,0.28426]
[1732716381521,10.19585214,237.7,237.63,0.28426]
[1732716381728,2.1033,237.7,237.63,0.28426]
[1732716381930,2.46,237.72,237.63,0.28426]
[1732716383034,12.29915214,237.71,237.63,2.38816]
[1732716383226,10.19585214,237.71,237.63,0.28426]
[1732716383631,10.19585214,237.68,237.63,0.28426]
[1732716384430,2.1036,237.67,237.63,0.28426]
[1732716384736,10.19585214,237.68,237.63,0.28426]
[1732716385934,12.29935214,237.68,237.63,0.28426]
[1732716386135,12.61,237.88,237.64,2.42]
[1732716386325,2.6023,237.82,237.7,10.19585214]
[1732716386525,2.6023,237.82,237.73,10.19585214]
[1732716386731,1.2081,237.85,237.74,2.42]
[1732716387128,1.2081,237.85,237.8,2.1024]
[1732716387338,1.2081,237.85,237.74,2.42]
[1732716387932,2.6023,237.89,237.77,10.19585214]
[1732716388134,11.40535214,237.97,237.8,10.19585214]
[1732716388441,10.19585214,237.94,237.84,2.102]
[1732716389034,10.19585214,237.94,237.82,2.1022]
[1732716389238,10.19585214,237.94,237.81,2.42]
[1732716389441,10.19585214,237.91,237.81,2.42]
[1732716389835,10.19585214,237.94,237.81,2.42]
[1732716390532,14.00765214,237.97,237.81,2.42]
[1732716390934,2.101,237.96,237.86,2.1019]
[1732716391137,14.00765214,237.97,237.86,2.1019]
[1732716391334,10.19585214,237.94,237.81,2.42]
[1732716391639,10.19585214,237.93,237.86,2.1019]
[1732716392137,10.19585214,237.93,237.81,2.42]
[1732716392436,10.19585214,237.93,237.87,2.1018]
[1732716392641,10.19585214,237.9,237.71,10.19585214]
[1732716392843,10.19585214,237.87,237.71,10.19585214]
[1732716393941,10.19585214,237.87,237.75,2.1028]
[1732716394145,12.29765214,237.87,237.76,2.42]
[1732716394336,12.29765214,237.87,237.71,10.19585214]
[1732716394337,12.29765214,237.87,237.77,2.42]
[1732716394644,2.42,237.91,237.71,10.19585214]
[1732716394645,12.29795214,237.84,237.71,10.19585214]
[1732716394839,10.19585214,237.84,237.72,2.42]
[1732716395040,10.19585214,237.84,237.73,2.1031]
[1732716395241,2.1023,237.82,237.73,2.1031]
[1732716395640,10.19585214,237.81,237.73,2.1031]
[1732716395842,10.19585214,237.78,237.65,3.7836]
[1732716396041,10.19585214,237.75,237.59,12.61585214]
[1732716396541,10.19585214,237.75,237.67,2.1035]
[1732716396745,10.19585214,237.75,237.65,2.42]
[1732716396948,101.0,238.02,237.72,10.19585214]
[1732716397137,2.1018,237.87,237.78,2.1026]
[1732716397536,10.19585214,237.85,237.73,2.42]
[1732716397747,12.29795214,237.85,237.76,2.1027]
[1732716399740,2.4321,237.91,237.66,3.7409]
[1732716399945,10.19585214,237.83,237.67,12.61585214]
[1732716400156,10.19585214,237.83,237.68,2.42]
[1732716400346,2.1026,237.79,237.69,2.1034]
[1732716400644,2.1026,237.79,237.68,2.42]
[1732716401045,2.1025,237.8,237.7,2.1033]
[1732716401239,16.31110381,237.8,237.66,2.42]
[1732716401450,16.31110381,237.76,237.63,2.42]
[1732716401749,16.31110381,237.76,237.64,2.1038]
[1732716401940,16.31110381,237.76,237.64,4.5238]
[1732716402144,16.31110381,237.76,237.64,2.42]
[1732716402946,2.1031,237.73,237.64,4.5238]
[1732716403147,16.31110381,237.76,237.64,4.5238]
[1732716403347,16.31110381,237.76,237.64,2.42]
[1732716403548,2.103,237.74,237.65,2.1037]
[1732716404044,16.31110381,237.76,237.64,2.42]
[1732716404251,1.2145,237.78,237.64,2.42]
[1732716404651,2.554,237.79,237.64,2.42]
[1732716405054,2.554,237.79,237.72,2.1031]
[1732716405553,2.554,237.79,237.73,2.103]
[1732716405749,2.554,237.79,237.71,2.42]
[1732716405949,2.554,237.79,237.72,2.1031]
[1732716406754,2.554,237.79,237.71,2.42]
[1732716407452,4.6566,237.79,237.71,4.5232]
[1732716407654,4.974,237.79,237.66,2.42]
[1732716407855,16.31110381,237.76,237.61,1.3115]
[1732716408059,2.1031,237.73,237.66,2.1037]
[1732716408247,16.31110381,237.76,237.62,2.42]
[1732716408452,2.1035,237.69,237.61,2.1041]
[1732716408647,16.31110381,237.72,237.61,2.1041]
[1732716408850,16.31110381,237.76,237.59,2.42]
[1732716409055,2.1029,237.75,237.68,2.1034]
[1732716409259,2.1029,237.75,237.59,2.42]
[1732716409554,2.103,237.74,237.59,2.42]
[1732716410151,2.103,237.74,237.65,2.1038]
[1732716410550,16.31110381,237.76,237.59,2.42]
[1732716410751,16.31110381,237.76,237.63,2.1039]
[1732716410949,16.31110381,237.76,237.59,2.42]
[1732716411352,16.31110381,237.76,237.64,2.1038]
[1732716411653,2.1031,237.74,237.59,2.42]
[1732716411849,2.1031,237.74,237.64,2.1038]
[1732716412054,2.1031,237.74,237.59,2.42]
[1732716412753,2.1031,237.73,237.59,2.42]
[1732716413158,16.31110381,237.76,237.63,2.1039]
[1732716413454,16.31110381,237.72,237.58,2.42]
[1732716413654,18.73110381,237.72,237.62,2.104]
[1732716413957,2.1033,237.71,237.62,2.104]
[1732716414357,18.73110381,237.72,237.58,2.42]
[1732716415060,18.73110381,237.72,237.62,2.104]
[1732716415661,18.73110381,237.72,237.58,2.42]
[1732716416559,18.73110381,237.72,237.62,2.104]
[1732716416560,2.1034,237.69,237.62,2.104]
[1732716419665,2.1034,237.69,237.63,2.1039]
[1732716419866,2.1034,237.69,237.58,2.42]
[1732716421060,2.1036,237.67,237.58,2.42]
[1732716421270,10.20299215,237.68,237.57,2.42]
[1732716421461,1.3167,237.66,237.57,2.42]
[1732716421659,1.3167,237.66,237.6,2.1042]
[1732716422265,1.3167,237.66,237.62,2.104]
[1732716422467,1.3167,237.66,237.57,2.42]
[1732716422667,1.2713,237.67,237.57,2.42]
[1732716423568,10.20299215,237.64,237.53,0.40097]
[1732716424064,10.20299215,237.64,237.57,2.1045]
[1732716424867,12.30689215,237.64,237.57,2.1045]
[1732716425670,10.20299215,237.61,237.53,0.40097]
[1732716426172,1.2503,237.6,237.54,2.1047]
[1732716426474,1.2503,237.6,237.53,0.40097]
[1732716426970,1.2503,237.6,237.55,2.1046]
[1732716427363,1.2503,237.6,237.54,2.1047]
[1732716427566,1.2503,237.6,237.53,0.40097]
[1732716427971,10.20299215,237.58,237.53,0.40097]
[1732716428163,10.20299215,237.55,237.53,0.40097]
[1732716428365,10.20299215,237.55,237.43,2.42]
[1732716428665,1.2258,237.57,237.34,4.2131]
[1732716428666,1.2258,237.57,237.45,10.20299215]
[1732716428870,1.2258,237.57,237.46,2.42]
[1732716429066,1.2258,237.57,237.5,2.105]
[1732716429270,10.20299215,237.54,237.46,2.42]
[1732716429670,1.3114,237.56,237.46,2.42]
[1732716430164,1.3114,237.56,237.51,2.105]
[1732716430369,1.2258,237.57,237.46,2.42]
[1732716432273,1.2258,237.57,237.52,2.1049]
[1732716432674,11.45329215,237.6,237.52,2.1049]
[1732716432865,11.45329215,237.6,237.5,2.1051]
[1732716433069,10.20299215,237.57,237.46,2.42]
[1732716433570,10.20299215,237.54,237.46,2.42]
[1732716433771,10.20299215,237.54,237.43,0.5624]
[1732716434075,10.20299215,237.51,237.44,2.1056]
[1732716434273,10.20299215,237.51,237.43,0.5624]
[1732716434966,10.20299215,237.45,237.43,0.5624]
[1732716435272,10.20299215,237.45,237.32,10.20299215]
[1732716435573,2.42,237.48,237.3,4.8764]
[1732716435777,2.42,237.48,237.28,1.3166]
[1732716435778,10.20299215,237.39,237.28,1.3166]
[1732716437078,10.20299215,237.39,237.26,2.42]
[1732716437265,10.20299215,237.36,237.25,2.42]
[1732716437669,10.20299215,237.36,237.29,2.107]
[1732716437971,10.20299215,237.36,237.25,2.42]
[1732716439474,1.2004,237.38,237.34,2.1065]
[1732716439682,2.42,237.51,237.31,12.62299215]
[1732716439969,10.20299215,237.46,237.32,3.6563]
[1732716440176,10.20299215,237.46,237.41,2.1059]
[1732716440374,10.20299215,237.43,237.32,3.6563]
[1732716440872,10.20299215,237.46,237.32,3.6563]
[1732716441474,10.20299215,237.43,237.32,3.6563]
[1732716442573,10.20299215,237.4,237.32,2.42]
[1732716443073,10.20299215,237.4,237.33,2.1066]
[1732716443380,10.20299215,237.4,237.29,2.42]
[1732716443771,10.20299215,237.4,237.33,2.1066]
[1732716444180,10.20299215,237.4,237.29,2.42]
[1732716445275,10.20299215,237.43,237.29,2.42]
[1732716445679,10.20299215,237.43,237.38,2.1061]
[1732716446380,10.20299215,237.43,237.29,2.42]
[1732716446381,10.20299215,237.4,237.29,2.42]
[1732716446977,10.20299215,237.4,237.37,2.1062]
[1732716447173,10.20299215,237.4,237.29,2.42]
[1732716447481,10.20299215,237.43,237.29,2.42]
[1732716447884,10.20299215,237.43,237.36,2.1063]
[1732716448186,10.20299215,237.43,237.29,2.42]
[1732716449675,4.5372,237.44,237.33,2.1066]
[1732716449676,12.30899215,237.4,237.33,2.1066]
[1732716449874,10.20299215,237.4,237.33,2.1066]
[1732716450073,10.20299215,237.37,237.3,2.1068]
[1732716450281,10.20299215,237.37,237.28,2.4]
[1732716450580,2.4315,237.44,237.38,893.44920785]
[1732716450777,10.20299215,237.39,237.38,893.44920785]
[1732716455084,12.30909215,237.39,237.38,827.98751605]
[1732716455284,10.20299215,237.39,237.38,827.98751605]
[1732716456186,12.30909215,237.39,237.38,827.98751605]
[1732716456486,14.45664695,237.39,237.38,825.99991605]
[1732716457784,14.45664695,237.39,237.38,799.30294608]
[1732716457977,14.45664695,237.39,237.38,741.33125428]
[1732716458683,27.06664695,237.39,237.38,741.33125428]
[1732716459584,37.2696391,237.39,237.38,590.17639774]
[1732716459789,37.2696391,237.39,237.38,413.69311105]
[1732716460394,37.2696391,237.39,237.38,393.59654108]
[1732716461090,46.90858832,237.39,237.38,302.26306279]
[1732716461683,46.90858832,237.39,237.38,175.7841658]
[1732716462186,37.2696391,237.39,237.38,175.7841658]
[1732716462388,35.1220843,237.39,237.38,153.82620625]
[1732716462582,35.1220843,237.39,237.38,143.33244652]
[1732716462781,35.1220843,237.39,237.38,136.86194652]
[1732716462987,35.1220843,237.39,237.38,124.28614652]
[1732716463288,37.21251974,237.39,237.38,118.70314652]
[1732716463488,37.21251974,237.39,237.38,98.60657655]
[1732716463688,37.21251974,237.39,237.38,89.62647655]
[1732716463886,12.61,237.37,237.28,0.23302]
[1732716464191,10.20299215,237.29,237.15,1.2078]
[1732716464388,10.20299215,237.19,237.15,1.2078]
[1732716464796,10.20299215,237.22,237.17,2.108]
[1732716465285,12.31059215,237.22,237.17,2.108]
[1732716465491,10.20299215,237.19,237.17,2.108]
[1732716466997,2.4,237.23,237.15,1.2078]
[1732716467292,10.20299215,237.24,237.15,1.2078]
[1732716467592,4.5072,237.27,237.15,1.2078]
[1732716467793,2.1072,237.27,237.15,1.2078]
[1732716467994,12.60299215,237.28,237.15,1.2078]
[1732716468292,2.1073,237.26,237.21,2.1076]
[1732716468492,10.20299215,237.25,237.15,1.2078]
[1732716469094,2.4,237.27,237.15,1.2078]
[1732716469692,10.20299215,237.28,237.15,1.2078]
[1732716469891,10.20299215,237.25,237.2,2.1075]
[1732716470299,10.20299215,237.25,237.15,1.2078]
[1732716470500,12.31009215,237.25,237.19,2.1076]
[1732716470703,12.30246158,237.25,237.15,1.2078]
[1732716470995,12.30246158,237.25,237.18,2.1077]
[1732716471201,12.30246158,237.25,237.15,1.2078]
[1732716471202,10.20299215,237.25,237.15,1.2078]
[1732716471703,12.32123132,237.25,237.15,1.2078]
[1732716472298,2.1072,237.24,237.17,2.1078]
[1732716472899,10.20299215,237.25,237.15,1.2078]
[1732716473202,12.30342746,237.25,237.15,1.2078]
[1732716473393,2.4,237.24,237.15,1.2078]
[1732716474003,12.60299215,237.25,237.18,2.1077]
[1732716474505,12.60299215,237.25,237.15,1.2078]
[1732716474698,14.71009215,237.25,237.19,2.1076]
[1732716475201,14.71009215,237.25,237.15,1.2078]
[1732716475202,8.4171,237.58,237.17,10.20299215]
[1732716475408,10.20299215,237.35,237.2,10.20299215]
[1732716475598,2.06584983,237.34,237.2,10.20299215]
[1732716475796,2.06584983,237.34,237.18,2.4]
[1732716475995,10.20299215,237.32,237.18,2.4]
[1732716476197,2.1067,237.3,237.23,2.1072]
[1732716476405,2.1067,237.3,237.18,2.4]
[1732716476600,10.20299215,237.32,237.18,2.4]
[1732716477106,2.1066,237.31,237.18,2.4]
[1732716477309,12.26631133,237.32,237.18,2.4]
[1732716477605,12.26631133,237.32,237.23,2.1072]
[1732716477807,12.26631133,237.32,237.18,2.4]
[1732716478207,2.1067,237.3,237.18,2.4]
[1732716478403,4.5267,237.3,237.18,2.4]
[1732716478599,4.5267,237.3,237.21,2.1074]
[1732716478799,2.42,237.3,237.18,2.4]
[1732716479003,12.62299215,237.32,237.18,2.4]
[1732716479403,10.20299215,237.32,237.18,2.4]
[1732716479807,2.1066,237.31,237.18,2.4]
[1732716480203,2.1066,237.31,237.24,2.1071]
[1732716480508,10.20299215,237.32,237.24,2.1071]
[1732716480913,2.1066,237.31,237.24,2.1071]
[1732716481303,2.1066,237.31,237.25,2.1071]
[1732716482108,10.20299215,237.32,237.18,2.4]
[1732716482305,10.20299215,237.32,237.26,2.107]
[1732716482910,12.30949215,237.32,237.26,2.107]
[1732716483313,10.20299215,237.32,237.28,2.1068]
[1732716483704,10.20299215,237.32,237.18,2.4]
[1732716483904,10.20299215,237.32,237.27,2.1069]
[1732716484110,10.20299215,237.32,237.18,2.4]
[1732716484313,2.1066,237.31,237.18,2.4]
[1732716484505,2.1066,237.31,237.24,2.1071]
[1732716484816,2.1066,237.31,237.18,2.4]
[1732716485213,10.20299215,237.32,237.18,2.4]
[1732716485806,10.20299215,237.32,237.18,2.42]
[1732716486005,12.30949215,237.32,237.26,2.107]
[1732716486408,10.20299215,237.32,237.18,2.42]
[1732716486912,10.20299215,237.32,237.27,2.1069]
[1732716487918,12.30949215,237.32,237.27,2.1069]
[1732716489214,10.20299215,237.29,237.18,2.42]
[1732716489812,10.20299215,237.29,237.23,2.1073]
[1732716491415,10.20299215,237.26,237.15,1.2078]
[1732716491616,10.20299215,237.23,237.15,1.2078]
[1732716492015,10.20299215,237.2,237.13,2.568]
[1732716492224,12.31059215,237.2,237.13,4.6762]
[1732716492519,12.31059215,237.2,237.09,3.6299]